Cogmind - Beta 13 @@@ ROGUE MODE // 2024.04.05 @ 21:08:47 Player: Toa of Guts Result: Destroyed by S-43 Plague with Heavy Machine Gun Performance ------------- Evolutions (7) 3500 Regions Visited (10) 2000 Robots Destroyed (90) 450 Value Destroyed (4043) 4043 Prototype IDs (8) 160 Alien Tech Used (0) 0 Bonus (0) 0 TOTAL SCORE: 10153 Bonus ------- None Cogmind --------- Core Integrity 0/1300 Matter 23/300 Energy 360/400 System Corruption 28% Temperature Cool (0) Movement Core (400) Ox7 Location -3/Research Parts ------- > --- POWER (1) -------- (None) > --- PROPULSION (4) --- (None) > --- UTILITY (13) ----- Advanced Coolant Injector Large Storage Unit Small Battery Compact Battery Improved Target Analyzer Graphene Brace Advanced Hacking Suite > --- WEAPON (3) ------- (None) > --- INVENTORY (15) --- Advanced Heat Sink Advanced Heat Sink Advanced Heat Sink Advanced Recalibrator Linear Accelerator Advanced Remote Datajack Peak State ------------ > --- POWER ------------ Micro Antimatter Reactor > --- PROPULSION ------- Compact Wheel High-density Centrium Wheel High-density Centrium Wheel High-density Centrium Wheel > --- UTILITY ---------- Coolant Injector Advanced Coolant Injector Large Storage Unit Compact Battery 0b10 Decoder Chip [Generic] Improved Target Analyzer Advanced Target Analyzer Improved Transmission Jammer Graphene Brace Improved Hacking Suite Advanced Hacking Suite Improved System Guard Advanced Recalibrator > --- WEAPON ----------- Tesla Rifle Wave Gun Power Maul > --- INVENTORY -------- Light Antimatter Reactor Heavy Siege Treads Heavy Siege Treads Compact Wheel Advanced Heat Sink Advanced Heat Sink Advanced Heat Sink Seismic Detector Advanced Plasma Cannon Heavy Machine Gun Enhanced Gauss Cannon Hardcell Cannon Advanced Remote Datajack [Rating: 131] Favorites ----------- Power Cold Fusion Reactor Engine Cooled Ion Engine Power Core Neutrino Core Reactor Cold Fusion Reactor Propulsion Compact Wheel Treads Advanced Treads Leg Armored Leg Wheel Compact Wheel Flight Unit Q-thruster Utility Advanced Heat Sink Device Advanced Heat Sink Storage Large Storage Unit Processor Improved Target Analyzer Hackware Improved Hacking Suite Protection Improved Medium Armor Plating Weapon Heavy Laser Energy Gun Heavy Laser Energy Cannon Advanced Plasma Cannon Ballistic Gun Heavy Machine Gun Ballistic Cannon Enhanced Gauss Cannon Special Weapon Advanced Remote Datajack Impact Weapon Power Maul Build | -11 -10 -9 -8 -7 -6 -5 -5 -5 -4 -3 ------- Run | Yrd Mat Mat Mat Fac Fac Fac Upp Upp Fac Res Slots Evolved 14 | . . 2 2 2 2 2 . . 2 2 Power . | . . . . . . . . . . . Propulsion 2 | . . . 1 . . 1 . . . . Utility 11 | . . 1 1 2 2 1 . . 2 2 Weapon 1 | . . 1 . . . . . . . . Parts Attached 218 | 7 5 5 22 15 45 29 5 2 28 55 Power 14 | 2 2 . 1 1 1 1 . . 2 4 Engine 5 | 2 2 . 1 . . . . . . . Core 2 | . . . . . . 1 . . 1 . Reactor 7 | . . . . 1 1 . . . 1 4 Propulsion 46 | 2 . . 4 . 9 8 . . 8 15 Treads 9 | . . . 2 . 3 . . . . 4 Leg 14 | . . . 1 . 5 4 . . 2 2 Wheel 20 | 2 . . 1 . 1 4 . . 6 6 Hover . | . . . . . . . . . . . Flight 3 | . . . . . . . . . . 3 Utility 91 | 1 2 2 4 7 28 14 4 2 11 16 Device 59 | . 1 1 4 5 20 9 1 2 6 10 Storage 5 | 1 1 . . . . . . . . 3 Processor 8 | . . 1 . . 1 2 2 . . 2 Hackware 3 | . . . . . . 1 . . 1 1 Protection 16 | . . . . 2 7 2 1 . 4 . Artifact . | . . . . . . . . . . . Weapon 67 | 2 1 3 13 7 7 6 1 . 7 20 Energy Gun 32 | 1 1 1 6 3 4 4 1 . 4 7 Energy Cannon 1 | . . . . . . . . . . 1 Ballistic Gun 13 | 1 . 1 4 2 2 2 . . . 1 Ballistic Cannon 8 | . . . . . . . . . 2 6 Launcher . | . . . . . . . . . . . Special Weapon 2 | . . . . . . . . . . 2 Impact Weapon 11 | . . 1 3 2 1 . . . 1 3 Slashing Weapon . | . . . . . . . . . . . Piercing Weapon . | . . . . . . . . . . . Special Melee Weapon . | . . . . . . . . . . . Unidentified Prototypes 5 | . 1 . . 1 . . . . . 3 Parts Lost 69 | . . . 1 . 11 7 1 . 17 32 Power 5 | . . . . . . . . . 2 3 Propulsion 24 | . . . 1 . 4 2 . . 5 12 Utility 27 | . . . . . 4 3 1 . 7 12 Weapon 13 | . . . . . 3 2 . . 3 5 Highest Loss Streak 16 | . . . 1 . 4 7 1 . 14 16 To Critical Strikes 2 | . . . . . . . . . 2 . Average Slot Usage (%) 91 | . 92 87 99 100 97 87 87 88 88 84 Engine 2 | . 13 11 9 3 . . . . . . Core 1 | . . . . . . . 5 5 3 . Reactor 2 | . . . . 3 6 4 . . 1 1 Treads 3 | . . . 2 7 12 . . . . . Leg 2 | . . . 2 . 5 4 . . 1 . Wheel 12 | . 28 22 21 15 2 12 11 11 8 15 Device 22 | . 7 11 18 29 31 27 20 17 20 22 Storage 7 | . 14 11 9 7 6 5 5 5 5 9 Processor 9 | . . . 9 7 . 3 17 23 20 15 Hackware 1 | . . . . . . 2 2 . 5 4 Protection 4 | . . . . . 11 6 5 5 4 2 Energy Gun 12 | . 14 20 17 15 16 10 11 11 12 3 Ballistic Gun 4 | . 14 9 7 5 2 4 5 5 1 . Naked Turns . | . . . . . . . . . . . Heaviest Build 72 | 14 34 38 41 54 70 72 57 56 58 58 Greatest Support 76 | 32 32 32 48 32 70 60 56 56 60 76 Greatest Overweight (x) 14 | . 1 1 1 1 2 4 1 . 14 7 Average Overweight (x) . | . . 1 . 1 . 1 . . . . Largest Inventory Capacity 15 | 8 15 15 15 15 15 15 15 15 15 15 Average Capacity 14 | 7 8 15 15 15 15 15 15 15 15 15 Most Carried 15 | 6 8 8 15 15 15 15 15 15 15 15 Average Carried 12 | 2 7 7 13 13 14 12 14 15 13 12 Final Capacity 15 | 8 15 15 15 15 15 15 15 15 15 15 Final Carried 15 | 6 8 8 11 13 15 15 15 15 11 6 Class Distribution -------------------- 24% | Scavenger-Gunner 17% | Scavenger-Tank 14% | Scavenger-Mutant 12% | Mutant 8% | Skirmisher 8% | Infiltrator-Skirmisher 6% | Gunner 5% | Scavenger-Skirmisher Dominant Class ---------------- Mutant | -10/Materials Skirmisher | -9/Materials Skirmisher | -8/Materials Infiltrator-Skirmisher | -7/Factory Scavenger-Tank | -6/Factory Scavenger-Tank | -5/Factory Scavenger-Gunner | -5/Upper Caves Scavenger-Gunner | -5/Upper Caves Scavenger-Gunner | -4/Factory Scavenger-Mutant | -3/Research Resources | -11 -10 -9 -8 -7 -6 -5 -5 -5 -4 -3 ----------- Run | Yrd Mat Mat Mat Fac Fac Fac Upp Upp Fac Res Matter Collected 3025 | 258 65 51 406 136 489 361 175 42 183 859 Remotely . | . . . . . . . . . . . Salvage Created 4135 | . 93 51 883 228 967 368 346 60 471 668 Parts 165 | . 9 3 39 11 33 14 15 1 16 24 Haulers Intercepted 1 | . . . 1 . . . . . . . Recyclers Shooed 5 | . . . 2 . 2 . . . 1 . Parts Field Recycled . | . . . . . . . . . . . Retrieved Matter . | . . . . . . . . . . . Parts Self-Destructed 13 | . . . . . . . 13 . . . Prevented . | . . . . . . . . . . . Kills | -11 -10 -9 -8 -7 -6 -5 -5 -5 -4 -3 ------- Run | Yrd Mat Mat Mat Fac Fac Fac Upp Upp Fac Res Combat Hostiles Destroyed 74 | . 3 1 12 5 15 6 6 1 10 15 Melee 1 | . . . . . . . . . . 1 Guns 61 | . 3 1 12 5 13 6 6 1 9 5 Cannons 10 | . . . . . . . . . 1 9 Classes Destroyed 13 | . 3 1 3 . 5 1 . . . . Worker 3 | . . . . . . 3 . . . . Builder 3 | . . . . . 1 . . . . 2 Tunneler 1 | . . . . . 1 . . . . . Hauler 1 | . . . 1 . . . . . . . Recycler 3 | . . . 3 . . . . . . . Operator 2 | . 1 . 1 . . . . . . . Watcher 3 | . 1 . 1 . 1 . . . . . Swarmer 14 | . 3 . 3 . . . . . 4 4 Grunt 27 | . . . 5 5 6 4 . 1 . 6 Brawler 1 | . . . . . 1 . . . . . Sentry 13 | . . 1 4 . 4 . 1 . 3 . Hunter 2 | . . . . . 2 . . . . . Programmer 17 | . . . . . 2 2 5 . 3 5 Best Kill Streak 6 | . 3 1 5 3 2 5 2 1 2 6 Combat Bots Only 6 | . 3 1 4 3 2 5 2 1 2 6 Max Kills in Single Turn 2 | . 1 1 2 1 1 1 1 1 1 1 Gunslinging . | . . . . . . . . . . . Exploded . | . . . . . . . . . . . Melee 1 | . . . . . . . . . . 1 Uniques/NPCs Destroyed . | . . . . . . . . . . . Combat | -11 -10 -9 -8 -7 -6 -5 -5 -5 -4 -3 -------- Run | Yrd Mat Mat Mat Fac Fac Fac Upp Upp Fac Res Hostile Shots Fired 1073 | . 8 6 69 35 284 65 38 4 152 412 Missed 337 | . 3 1 24 18 94 13 14 2 50 118 Damage Taken 13786 | . 56 78 652 192 2930 1042 490 37 1785 6524 Core 2134 | . 9 . 125 14 212 73 99 . 301 1301 Absorbed by Shields . | . . . . . . . . . . . Redirected to Shielding 82 | . . . . . 52 . . . 30 . Ignored by Resistances 14 | . . . . 8 6 . . . . . Regen/Repaired (Parts) 18 | . . . . . 18 . . . . . Core Remaining (%) 87 | 100 96 100 77 98 75 . . 82 73 . Volleys Fired 294 | . 8 10 48 13 58 22 11 4 31 89 Largest 3 | . 2 3 3 3 3 3 3 3 3 2 Hottest 219 | . 76 132 161 161 213 184 196 196 219 146 Shots Fired 708 | . 16 30 143 39 172 66 34 11 79 118 Gun 626 | . 16 30 143 39 172 66 34 11 72 43 Cannon 79 | . . . . . . . . . 7 72 Launcher . | . . . . . . . . . . . Special 3 | . . . . . . . . . . 3 Kinetic 235 | . 8 10 47 13 20 22 11 3 15 86 Thermal 437 | . 8 20 89 26 152 27 23 8 64 20 Explosive . | . . . . . . . . . . . Electromagnetic 33 | . . . 7 . . 17 . . . 9 Robot Hit Streak 40 | . 5 6 12 9 40 10 11 5 14 12 Robot Miss Streak 6 | . 3 1 3 3 4 6 2 4 3 2 Penetration Max . | . . . . . . . . . . . Secondary Targets 11 | . . . 1 1 3 3 1 . 1 1 Max Gunslinging Chain 1 | . . . 1 1 1 1 1 . 1 1 Shots Hit Robots 490 | . 8 9 97 24 135 49 26 5 54 83 Core Hits 210 | . 5 2 31 11 53 36 13 3 24 32 Critical Kills 1 | . . . . . . . 1 . . . Critical Parts Destroyed 5 | . . . . . . 1 1 . . 3 Critical Strikes 45 | . . 1 8 . 4 3 4 . 11 14 Burn 26 | . . 1 8 . 4 2 2 . 8 1 Destroy 4 | . . . . . . 1 2 . . 1 Blast 12 | . . . . . . . . . 3 9 Corrupt 1 | . . . . . . . . . . 1 Smash 2 | . . . . . . . . . . 2 Melee Attacks 34 | . . 2 6 3 4 . . . 3 16 Impact 34 | . . 2 6 3 4 . . . 3 16 Slashing . | . . . . . . . . . . . Piercing . | . . . . . . . . . . . Sneak Attacks 2 | . . . . . . . . . . 2 Combat Hostiles . | . . . . . . . . . . . Follow-up Attacks . | . . . . . . . . . . . Damage Inflicted 10827 | . 106 128 1672 419 2671 896 633 104 1300 2898 Guns 8418 | . 106 128 1672 419 2671 853 633 104 1086 746 Cannons 2078 | . . . . . . . . . 214 1864 Explosions 43 | . . . . . . 43 . . . . Melee 280 | . . . . . . . . . . 280 Ramming 8 | . . . . . . . . . . 8 Kinetic 3979 | . 48 41 430 118 293 382 241 21 283 2122 Thermal 6235 | . 58 87 1151 301 2378 378 392 83 1017 390 Explosive . | . . . . . . . . . . . Electromagnetic 325 | . . . 91 . . 136 . . . 98 Impact 280 | . . . . . . . . . . 280 Slashing . | . . . . . . . . . . . Piercing . | . . . . . . . . . . . Highest Corruption 28 | . . . . . 2 6 10 10 6 28 Average Corruption 6 | . . . . . 1 3 7 10 1 11 Corruption Purged . | . . . . . . . . . . . Corruption Blocked . | . . . . . . . . . . . Effects 64 | . . . . . 1 7 26 4 5 21 Message Errors 13 | . . . . . . 2 5 2 . 4 Matter Fused 15 | . . . . . . 1 5 . 2 7 Heat Flow Errors 9 | . . . . . . 2 5 . 1 1 Energy Discharges 6 | . . . . . 1 1 1 1 . 2 Parts Rejected 1 | . . . . . . . . . . 1 Data Loss (minor) 9 | . . . . . . . 7 . 1 1 Data Loss (major) 3 | . . . . . . . 1 . 1 1 Misfires 3 | . . . . . . 1 1 . . 1 Alerts 1 | . . . . . . . 1 . . . Misdirections 2 | . . . . . . . . . . 2 Weapon Failures 2 | . . . . . . . . 1 . 1 Overload Shots . | . . . . . . . . . . . Overflow Damage 315 | . . . . . . 3 . . 7 305 Projectiles 138 | . . . . . . . . . 7 131 Explosions 3 | . . . . . . 3 . . . . Melee 174 | . . . . . . . . . . 174 Knockbacks 35 | . . . . . . . . . 2 33 Impact . | . . . . . . . . . . . Kinetic 26 | . . . . . . . . . 2 24 Secondary 9 | . . . . . . . . . . 9 Self-Inflicted Damage 40 | . . . . . . 40 . . . . Shots 1 | . . . . . . 1 . . . . Rammed . | . . . . . . . . . . . Targets Rammed 3 | . . . . . . . . . . 3 Kicked 2 | . . . . . . . . . . 2 Crushed 1 | . . . . . . . . . . 1 Highest Temperature 279 | . 249 221 250 162 108 153 195 112 279 184 Average Temperature 59 | . 51 103 65 62 33 31 53 58 66 61 Received Heat Transfer 2085 | . . 18 252 90 666 387 54 18 111 489 Siege Activations . | . . . . . . . . . . . Robots Corrupted . | . . . . . . . . . . . Combat Hostiles . | . . . . . . . . . . . Parts Fried 3 | . . . 1 . . . . . . 2 Impact Corruptions 8 | . . . . . . . . . . 8 Robots Melted 3 | . . . 1 . 2 . . . . . Combat Hostiles 2 | . . . . . 2 . . . . . Parts Melted 53 | . . 4 11 . 13 3 2 2 15 3 Heat Transferred 14250 | . 148 296 3034 592 4959 1009 920 174 2474 644 Parts Sabotaged . | . . . . . . . . . . . Parts Stolen . | . . . . . . . . . . . Parts Stripped . | . . . . . . . . . . . Power Chain Reactions 1 | . . . . . . 1 . . . . Alert | -11 -10 -9 -8 -7 -6 -5 -5 -5 -4 -3 ------- Run | Yrd Mat Mat Mat Fac Fac Fac Upp Upp Fac Res Peak Influence 297 | . 111 96 297 286 196 120 . . 144 217 Initial 120 | . . 46 40 120 56 58 . . 37 . Average 79 | . 25 54 170 178 81 53 . . 49 53 Maximum Alert Level 1 | . . . 1 1 . . . . . 1 Low Security (%) 91 | 100 100 100 59 58 100 100 . . 100 97 Level 1 8 | . . . 40 41 . . . . . 2 Level 2 . | . . . . . . . . . . . Level 3 . | . . . . . . . . . . . Level 4 . | . . . . . . . . . . . Level 5 . | . . . . . . . . . . . High Security . | . . . . . . . . . . . Max Security . | . . . . . . . . . . . Squads Dispatched 17 | . . 1 2 2 4 3 . . 1 4 Investigation 3 | . . . . 2 . 1 . . . . Extermination 6 | . . . . . 2 1 . . 1 2 Reinforcement 8 | . . 1 2 . 2 1 . . . 2 Assault . | . . . . . . . . . . . Garrison . | . . . . . . . . . . . Intercept . | . . . . . . . . . . . Searches Triggered . | . . . . . . . . . . . Construction Impeded . | . . . . . . . . . . . Haulers Reinforced 1 | . . . . . . . . . . 1 Active Scanning Responses . | . . . . . . . . . . . Cargo Convoy Interrupts 1 | . . . . . . 1 . . . . Stealth | -11 -10 -9 -8 -7 -6 -5 -5 -5 -4 -3 --------- Run | Yrd Mat Mat Mat Fac Fac Fac Upp Upp Fac Res Distress Signals 3 | . . . 3 . . . . . . . Communications Jammed 55 | . . . . . . . . . 1 54 Distress Signals 53 | . . . . . . . . . . 53 Times Spotted 142 | . 8 2 25 10 23 12 11 1 15 35 Peak Tracking Total 13 | . 3 1 6 3 4 6 5 1 4 13 Tactical Retreats 15 | . . . 3 1 2 3 . . 2 4 Traps | -11 -10 -9 -8 -7 -6 -5 -5 -5 -4 -3 ------- Run | Yrd Mat Mat Mat Fac Fac Fac Upp Upp Fac Res Traps Triggered 6 | . 1 . . . 1 1 . . 1 2 Indirectly . | . . . . . . . . . . . Trap Hack Attempts . | . . . . . . . . . . . Triggered . | . . . . . . . . . . . Disarmed . | . . . . . . . . . . . Reprogrammed . | . . . . . . . . . . . Reused . | . . . . . . . . . . . Traps Extracted . | . . . . . . . . . . . Installed . | . . . . . . . . . . . Triggered 1 | . . . . . . 1 . . . . Machines | -11 -10 -9 -8 -7 -6 -5 -5 -5 -4 -3 ---------- Run | Yrd Mat Mat Mat Fac Fac Fac Upp Upp Fac Res Machines Disabled 3 | . . . 2 . . 1 . . . . Max in Single Turn 1 | . . . 1 . . 1 . . . . Machines Repaired . | . . . . . . . . . . . Machines Dismantled . | . . . . . . . . . . . Machines Sabotaged . | . . . . . . . . . . . Overloaded Fab Kills . | . . . . . . . . . . . Hacking | -11 -10 -9 -8 -7 -6 -5 -5 -5 -4 -3 --------- Run | Yrd Mat Mat Mat Fac Fac Fac Upp Upp Fac Res Machines Accessed 17 | . 3 1 2 3 1 4 . . 3 . Terminals 13 | . 3 1 2 2 . 3 . . 2 . Fabricators 3 | . . . . 1 . 1 . . 1 . Repair Stations 1 | . . . . . 1 . . . . . Recycling Units . | . . . . . . . . . . . Scanalyzers . | . . . . . . . . . . . Garrison Access . | . . . . . . . . . . . Total Hacks 42 | . 10 1 3 7 5 11 . . 5 . Successful 17 | . 3 1 2 4 2 4 . . 1 . Failed 25 | . 7 . 1 3 3 7 . . 4 . Catastrophic 3 | . 1 . . 1 . 1 . . . . Database Lockouts . | . . . . . . . . . . . Manual 16 | . 3 . . 1 . 7 . . 5 . Terminals 30 | . 10 1 3 4 . 9 . . 3 . Fabricators 7 | . . . . 3 . 2 . . 2 . Repair Stations 5 | . . . . . 5 . . . . . Recycling Units . | . . . . . . . . . . . Scanalyzers . | . . . . . . . . . . . Garrison Access . | . . . . . . . . . . . Terminal Hacks 10 | . 2 1 2 2 . 3 . . . . Record 1 | . . . . . . 1 . . . . Prototype ID Bank 1 | . . . 1 . . . . . . . Open DSF 1 | . . . . 1 . . . . . . Level Access Points 2 | . . . 1 1 . . . . . . Branch Access Points 1 | . 1 . . . . . . . . . Alert Level 1 | . . . . . . 1 . . . . Locate Traps 1 | . 1 . . . . . . . . . Maintenance Status 1 | . . 1 . . . . . . . . Zone Layout 1 | . . . . . . 1 . . . . Fabricator Hacks 1 | . . . . 1 . . . . . . Network Status 1 | . . . . 1 . . . . . . Repair Station Hacks 2 | . . . . . 2 . . . . . Scan Component 1 | . . . . . 1 . . . . . Repair 1 | . . . . . 1 . . . . . Recycling Unit Hacks . | . . . . . . . . . . . Scanalyzer . | . . . . . . . . . . . Garrison Access Hacks . | . . . . . . . . . . . Unauthorized Hacks 4 | . 1 . . 1 . 1 . . 1 . Terminals 2 | . 1 . . . . 1 . . . . Track 1 | . 1 . . . . . . . . . Assimilate 1 | . . . . . . 1 . . . . Fabricators 2 | . . . . 1 . . . . 1 . Report 2 | . . . . 1 . . . . 1 . Repair Stations . | . . . . . . . . . . . Recycling Units . | . . . . . . . . . . . Scanalyzers . | . . . . . . . . . . . Garrison Access . | . . . . . . . . . . . Data Cores Recovered 1 | . 1 . . . . . . . . . Used 1 | . 1 . . . . . . . . . Hacking Detections 14 | . 3 . 2 3 . 4 . . 2 . Full Trace Events 4 | . 1 . . 2 . 1 . . . . Feedback Events . | . . . . . . . . . . . Feedback Blocked . | . . . . . . . . . . . Robot Schematics Acquired . | . . . . . . . . . . . Robots Built . | . . . . . . . . . . . Authchips . | . . . . . . . . . . . Time . | . . . . . . . . . . . Total Robot Build Rating . | . . . . . . . . . . . Part Schematics Acquired . | . . . . . . . . . . . Parts Built . | . . . . . . . . . . . Authchips . | . . . . . . . . . . . Time . | . . . . . . . . . . . Total Part Build Rating . | . . . . . . . . . . . Parts Repaired 1 | . . . . . 1 . . . . . Time 44 | . . . . . 44 . . . . . Parts Recycled . | . . . . . . . . . . . Recycled Matter . | . . . . . . . . . . . Retrieved Matter . | . . . . . . . . . . . Retrieved Components . | . . . . . . . . . . . Parts Scanalyzed . | . . . . . . . . . . . Part Schematics Acquired . | . . . . . . . . . . . Parts Damaged . | . . . . . . . . . . . Bothacking | -11 -10 -9 -8 -7 -6 -5 -5 -5 -4 -3 ------------ Run | Yrd Mat Mat Mat Fac Fac Fac Upp Upp Fac Res Used RIF Installer . | . . . . . . . . . . . Robots Hacked 1 | . . . . . . . . . . 1 Non-combat . | . . . . . . . . . . . Combat 1 | . . . . . . . . . . 1 Robot Hacks Applied 1 | . . . . . . . . . . 1 parse_system 1 | . . . . . . . . . . 1 Relay Couplers Released . | . . . . . . . . . . . Fabnet Peak Effective % . | . . . . . . . . . . . Robots Rewired . | . . . . . . . . . . . Allies Hacked . | . . . . . . . . . . . Hacks Repelled . | . . . . . . . . . . . Allies | -11 -10 -9 -8 -7 -6 -5 -5 -5 -4 -3 -------- Run | Yrd Mat Mat Mat Fac Fac Fac Upp Upp Fac Res Total Allies . | . . . . . . . . . . . Largest Group . | . . . . . . . . . . . Highest-Rated Group . | . . . . . . . . . . . Highest-Rated Ally . | . . . . . . . . . . . Total Orders . | . . . . . . . . . . . Ally Attacks . | . . . . . . . . . . . Total Damage . | . . . . . . . . . . . Kills . | . . . . . . . . . . . Allies Corrupted . | . . . . . . . . . . . Allies Melted . | . . . . . . . . . . . Intel | -11 -10 -9 -8 -7 -6 -5 -5 -5 -4 -3 ------- Run | Yrd Mat Mat Mat Fac Fac Fac Upp Upp Fac Res Robot Analysis Total . | . . . . . . . . . . . Derelict Logs Recovered 1 | . . . . . . . 1 . . . Drone Launches . | . . . . . . . . . . . Drone Recoveries . | . . . . . . . . . . . Decoded 0b10 Intel 73 | . . . . . . . . . 34 39 Traps 10 | . . . . . . . . . 4 6 Emergency Access 4 | . . . . . . . . . 2 2 Items 48 | . . . . . . . . . 22 26 Machines 4 | . . . . . . . . . 1 3 Patrols 3 | . . . . . . . . . 2 1 Guards 3 | . . . . . . . . . 2 1 Exits 1 | . . . . . . . . . 1 . Exploration | -11 -10 -9 -8 -7 -6 -5 -5 -5 -4 -3 ------------- Run | Yrd Mat Mat Mat Fac Fac Fac Upp Upp Fac Res Turns Passed 9279 | 48 635 238 983 546 1878 1114 1028 117 1140 1552 Spaces Moved 5036 | 33 193 93 513 296 767 733 849 85 667 807 Core 4 | 2 . . . . . . . . 1 1 Treads 479 | . . . . . 479 . . . . . Legs 169 | . . . . . 159 . . . . 10 Wheels 4380 | 31 193 93 513 296 129 733 849 85 666 792 Hover . | . . . . . . . . . . . Flight 4 | . . . . . . . . . . 4 Fastest Speed 44 | 50 100 115 100 115 115 100 100 100 100 44 Average Speed 115 | 96 103 115 109 115 162 117 101 100 111 94 Slowest Speed 750 | 100 115 115 115 115 260 160 115 100 750 400 Overloaded Moves . | . . . . . . . . . . . Propulsion Burnouts . | . . . . . . . . . . . Robots Hopped . | . . . . . . . . . . . Cave-ins Triggered . | . . . . . . . . . . . Exploration Rate (%) 23 | 3 24 17 49 7 19 19 79 8 13 20 Regions Visited 10 Branch Regions 2 Pre-discovered Areas . | . . . . . . . . . . . Known Exits Taken 5 | . . 1 1 1 . . 1 . 1 . Unknown Exits Taken 5 | 1 1 . . . 1 1 . 1 . . Scrap Searched 4 | . . . . . . . 4 . . . Spaces Dug 36 | . . 1 6 3 4 . . . 3 19 Terrain Destroyed 60 | . . 1 6 3 4 4 . . 6 36 Melee 28 | . . 1 6 3 4 . . . 3 11 Projectile 28 | . . . . . . . . . 3 25 AOE 4 | . . . . . . 4 . . . . Terrain Rammed . | . . . . . . . . . . . Walls Destroyed . | . . . . . . . . . . . Machines Disabled . | . . . . . . . . . . . Actions | -11 -10 -9 -8 -7 -6 -5 -5 -5 -4 -3 --------- Run | Yrd Mat Mat Mat Fac Fac Fac Upp Upp Fac Res Total 7897 | 46 616 196 819 467 1270 934 992 110 998 1449 Wait 2091 | . 395 86 201 124 337 130 122 18 243 435 Move 5026 | 32 192 92 512 295 766 732 848 84 666 807 Hop . | . . . . . . . . . . . Pick Up 110 | 7 7 1 15 9 23 14 2 . 12 20 Fast Attach 42 | 4 2 1 2 . 8 3 2 . 8 12 Attach 88 | 2 . 1 6 3 16 17 . . 12 31 Detach 35 | . 1 . 1 1 10 4 1 . 3 14 Swap 88 | 1 3 3 14 12 21 9 3 2 8 12 Drop 86 | . 8 . 14 7 27 3 3 2 12 10 Fire 294 | . 8 10 48 13 58 22 11 4 31 89 Melee 34 | . . 2 6 3 4 . . . 3 16 Ram . | . . . . . . . . . . . Kick 2 | . . . . . . . . . . 2 Crush 1 | . . . . . . . . . . 1 Escape Stasis . | . . . . . . . . . . . Rewire . | . . . . . . . . . . . Trap . | . . . . . . . . . . . Miscellaneous . | . . . . . . . . . . . Route ------- -11/Scrapyard -10/Materials (discovered 3 exits: *Mat / Min x2) -9/Materials -8/Materials (discovered 3 exits: *Fac x3) -7/Factory (discovered 4 exits: *Fac x4) -6/Factory -5/Factory (discovered 2 exits: [*Upp] / [*Ext]) -5/Upper Caves -5/Upper Caves -4/Factory -3/Research History --------- Turn | Location | Event 27 | -11/Scrapyard | Discovered new exit (range 15) 49 | -11/Scrapyard | Entered Materials 55 | -10/Materials | Identified exit to Mines 315 | -10/Materials | Build established: Mutant 614 | -10/Materials | Discovered new exit (range 4) 684 | -10/Materials | Entered another Materials area 684 | -9/Materials | Evolved 2 slots: Utility x1, Weapon x1 872 | -9/Materials | Discovered new exit (range 11) 921 | -9/Materials | Identified exit to Materials 922 | -9/Materials | Entered another Materials area 922 | -8/Materials | Evolved 2 slots: Propulsion x1, Utility x1 1799 | -8/Materials | Identified exit to Factory 1905 | -8/Materials | Entered Factory 1905 | -7/Factory | Evolved 2 slots: Utility x2 1946 | -7/Factory | Identified exit to Factory 2052 | -7/Factory | Identified exit to DSF 2417 | -7/Factory | Build established: Infiltrator-Skirmisher 2451 | -7/Factory | Entered another Factory area 2451 | -6/Factory | Evolved 2 slots: Utility x2 2800 | -6/Factory | Lost 3 parts (1n2u) 3002 | -6/Factory | Repaired Transmission Jammer 3090 | -6/Factory | Build established: Scavenger-Skirmisher 3645 | -6/Factory | Build established: Scavenger-Tank 4241 | -6/Factory | Discovered new exit (range 4) 4329 | -6/Factory | Entered another Factory area 4329 | -5/Factory | Evolved 2 slots: Propulsion x1, Utility x1 4354 | -5/Factory | Lost 4 parts (2n2w) 5162 | -5/Factory | Lost 7 parts (2n3u2w) 5259 | -5/Factory | Discovered new exit (range 5) 5350 | -5/Factory | Cargo convoy interrupted 5431 | -5/Factory | Discovered new exit (range 6) 5443 | -5/Factory | Entered Upper Caves 5749 | -5/Upper Caves | Build established: Gunner 5813 | -5/Upper Caves | Attracted the attention of an 0b10 checkpoint 6001 | -5/Upper Caves | Identified exit to Upper Caves 6155 | -5/Upper Caves | Build established: Scavenger-Gunner 6310 | -5/Upper Caves | System corruption reached 10% 6471 | -5/Upper Caves | Entered another Upper Caves area 6577 | -5/Upper Caves | Discovered new exit (range 10) 6588 | -5/Upper Caves | Entered Factory 6588 | -4/Factory | Evolved 2 slots: Utility x2 7692 | -4/Factory | Identified exit to Research 7728 | -4/Factory | Entered Research 7728 | -3/Research | Evolved 2 slots: Utility x2 7751 | -3/Research | Lost 14 parts (2p4n6u2w) 7967 | -3/Research | Build established: Scavenger-Mutant 8842 | -3/Research | Lost 3 parts (1p1u1w) 8951 | -3/Research | Lost 7 parts (1p2n1u3w) 9111 | -3/Research | System corruption reached 10% 9113 | -3/Research | Core integrity fell below 50% 9141 | -3/Research | Lost 3 parts (1n2u) 9266 | -3/Research | Core integrity fell below 20% 9280 | -3/Research | Destroyed by S-43 Plague with Heavy Machine Gun Last Messages --------------- 09258_ P-80 Master resets S-43 Plague, system corruption cleaned. 09259_ U-05 Engineer builds a Wall. 09259_ K-01 Serf collects debris. 09261_ P-80 Master resets G-67 Veteran, system corruption cleaned. 09262_ Hvy. Siege Treads destroyed. 09263_ K-01 Serf collects debris. 09264_ PY6MBESQJY